Cogmind - Beta 13 @@@ ROGUE MODE // 2024.04.06 @ 11:11:41 Player: Feral_Cog Result: Destroyed by as-79745 with Assembled Maul Performance ------------- Evolutions (0) 0 Regions Visited (3) 600 Robots Destroyed (23) 115 Value Destroyed (377) 377 Prototype IDs (2) 40 Alien Tech Used (0) 0 Bonus (300) 300 TOTAL SCORE: 1432 Bonus ------- Aligned with FarCom 300 Cogmind --------- Core Integrity 0/250 Matter 266/300 Energy 250/250 System Corruption 7% Temperature Cool (0) Movement Walking (190) Ox1 Location -10/Exiles Parts ------- > --- POWER (1) -------- Ion Engine > --- PROPULSION (2) --- Aluminum Leg > --- UTILITY (2) ------ Medium Storage Unit Signal Interpreter > --- WEAPON (2) ------- Shotgun > --- INVENTORY (10) --- Ion Engine Ion Engine Power Shielding Weapon Shielding Weapon Shielding Recalibrator Shotgun Shotgun Peak State ------------ > --- POWER ------------ Ion Engine > --- PROPULSION ------- Aluminum Leg Aluminum Leg > --- UTILITY ---------- Small Storage Unit Signal Interpreter > --- WEAPON ----------- Shotgun Shotgun > --- INVENTORY -------- Ion Engine Terrain Scanner Power Shielding Weapon Shielding Weapon Shielding Recalibrator Shotgun Shotgun [Rating: 10] Favorites ----------- Power Ion Engine Engine Ion Engine Propulsion Aluminum Leg Leg Aluminum Leg Utility Signal Interpreter Storage Medium Storage Unit Processor Signal Interpreter Protection Power Shielding Weapon Shotgun Energy Gun EM Pulse Gun Ballistic Gun Shotgun Launcher Grenade Launcher Build | -11 -10 -10 -10 ------- Run | Yrd Mat Min Exi Slots Evolved . | . . . . Power . | . . . . Propulsion . | . . . . Utility . | . . . . Weapon . | . . . . Parts Attached 17 | 6 8 2 1 Power 4 | 1 1 1 1 Engine 4 | 1 1 1 1 Core . | . . . . Reactor . | . . . . Propulsion 3 | 2 . 1 . Treads . | . . . . Leg 3 | 2 . 1 . Wheel . | . . . . Hover . | . . . . Flight . | . . . . Utility 4 | 1 3 . . Device . | . . . . Storage 2 | 1 1 . . Processor 1 | . 1 . . Hackware . | . . . . Protection 1 | . 1 . . Artifact . | . . . . Weapon 6 | 2 4 . . Energy Gun 1 | 1 . . . Energy Cannon . | . . . . Ballistic Gun 4 | 1 3 . . Ballistic Cannon . | . . . . Launcher 1 | . 1 . . Special Weapon . | . . . . Impact Weapon . | . . . . Slashing Weapon . | . . . . Piercing Weapon . | . . . . Special Melee Weapon . | . . . . Unidentified Prototypes . | . . . . Parts Lost 4 | . 2 . 2 Power . | . . . . Propulsion 1 | . . . 1 Utility . | . . . . Weapon 3 | . 2 . 1 Highest Loss Streak 2 | . 2 . 2 To Critical Strikes . | . . . . Average Slot Usage (%) 98 | . 96 100 100 Engine 14 | . 14 14 14 Leg 28 | . 28 28 28 Storage 14 | . 14 14 14 Processor 11 | . 5 14 14 Protection 2 | . 7 . . Energy Gun 1 | . 3 . . Ballistic Gun 25 | . 20 28 28 Naked Turns . | . . . . Heaviest Build 21 | 12 21 21 21 Greatest Support 20 | 20 20 20 20 Greatest Overweight (x) 2 | 2 1 1 1 Average Overweight (x) . | . . 1 1 Largest Inventory Capacity 10 | 8 10 10 10 Average Capacity 9 | 7 8 10 10 Most Carried 10 | 5 8 10 10 Average Carried 6 | 1 4 8 8 Final Capacity 10 | 8 10 10 10 Final Carried 8 | 1 8 8 8 Class Distribution -------------------- 100% | Mutant Dominant Class ---------------- Mutant | -10/Materials Mutant | -10/Mines Mutant | -10/Exiles Resources | -11 -10 -10 -10 ----------- Run | Yrd Mat Min Exi Matter Collected 713 | 260 246 207 . Remotely . | . . . . Salvage Created 595 | . 289 306 . Parts 40 | . 24 16 . Haulers Intercepted 1 | . 1 . . Recyclers Shooed 1 | . . 1 . Parts Field Recycled . | . . . . Retrieved Matter . | . . . . Parts Self-Destructed . | . . . . Prevented . | . . . . Kills | -11 -10 -10 -10 ------- Run | Yrd Mat Min Exi Combat Hostiles Destroyed 13 | . 8 5 . Guns 12 | . 7 5 . AOE 1 | . 1 . . Classes Destroyed 8 | . 7 1 . Builder 3 | . 2 1 . Tunneler 1 | . . 1 . Hauler 1 | . 1 . . Recycler 3 | . 1 2 . Mechanic 1 | . 1 . . Operator 1 | . 1 . . Swarmer 8 | . 5 3 . Grunt 5 | . 3 2 . Best Kill Streak 6 | . 3 6 . Combat Bots Only 3 | . 2 3 . Max Kills in Single Turn 3 | . 3 2 . Gunslinging . | . . . . Exploded 1 | . 1 . . Melee . | . . . . Uniques/NPCs Destroyed . | . . . . Combat | -11 -10 -10 -10 -------- Run | Yrd Mat Min Exi Hostile Shots Fired 97 | . 41 32 24 Missed 30 | . 12 11 7 Damage Taken 894 | . 374 236 284 Core 262 | . 117 45 100 Absorbed by Shields . | . . . . Redirected to Shielding 13 | . 13 . . Core Remaining (%) 100 | 100 . . . Volleys Fired 60 | . 42 14 4 Largest 2 | . 2 2 2 Hottest 70 | . 70 46 46 Shots Fired 100 | . 65 28 7 Gun 96 | . 61 28 7 Cannon . | . . . . Launcher 4 | . 4 . . Special . | . . . . Kinetic 79 | . 44 28 7 Thermal . | . . . . Explosive 4 | . 4 . . Electromagnetic 17 | . 17 . . Robot Hit Streak 5 | . 4 5 5 Robot Miss Streak 5 | . 5 4 2 Penetration Max . | . . . . Secondary Targets 2 | . 1 1 . Max Gunslinging Chain 1 | . 1 1 . Shots Hit Robots 66 | . 38 22 6 Core Hits 43 | . 23 15 5 Critical Kills . | . . . . Critical Parts Destroyed 1 | . 1 . . Critical Strikes 1 | . 1 . . Destroy 1 | . 1 . . Melee Attacks . | . . . . Impact . | . . . . Slashing . | . . . . Piercing . | . . . . Sneak Attacks . | . . . . Combat Hostiles . | . . . . Follow-up Attacks . | . . . . Damage Inflicted 1310 | . 881 313 116 Guns 942 | . 513 313 116 Cannons . | . . . . Explosions 368 | . 368 . . Melee . | . . . . Ramming . | . . . . Kinetic 790 | . 361 313 116 Thermal 45 | . 45 . . Explosive 323 | . 323 . . Electromagnetic 152 | . 152 . . Impact . | . . . . Slashing . | . . . . Piercing . | . . . . Highest Corruption 7 | . 2 2 7 Average Corruption 2 | . 2 2 2 Corruption Purged . | . . . . Corruption Blocked . | . . . . Effects 28 | . 17 4 7 Message Errors 7 | . 2 3 2 Matter Fused 7 | . 6 . 1 Heat Flow Errors 3 | . 2 . 1 Energy Discharges 3 | . 2 . 1 Data Loss (minor) 3 | . 2 1 . Data Loss (major) 1 | . . . 1 Misfires 3 | . 2 . 1 Weapon Failures 1 | . 1 . . Overload Shots . | . . . . Overflow Damage 3 | . 3 . . Projectiles . | . . . . Explosions 3 | . 3 . . Melee . | . . . . Knockbacks . | . . . . Impact . | . . . . Kinetic . | . . . . Secondary . | . . . . Self-Inflicted Damage 32 | . 32 . . Shots 1 | . 1 . . Rammed . | . . . . Targets Rammed . | . . . . Kicked . | . . . . Crushed . | . . . . Highest Temperature 248 | . 248 10 241 Average Temperature 70 | . 66 4 126 Received Heat Transfer 261 | . 180 81 . Siege Activations . | . . . . Robots Corrupted . | . . . . Combat Hostiles . | . . . . Parts Fried 1 | . 1 . . Impact Corruptions . | . . . . Robots Melted . | . . . . Combat Hostiles . | . . . . Parts Melted . | . . . . Heat Transferred . | . . . . Parts Sabotaged . | . . . . Parts Stolen . | . . . . Parts Stripped . | . . . . Power Chain Reactions 1 | . 1 . . Alert | -11 -10 -10 -10 ------- Run | Yrd Mat Min Exi Peak Influence 187 | . 187 107 . Initial 7 | . . 7 . Average 53 | . 78 21 . Maximum Alert Level . | . . . . Low Security (%) 100 | 100 100 100 . Level 1 . | . . . . Level 2 . | . . . . Level 3 . | . . . . Level 4 . | . . . . Level 5 . | . . . . High Security . | . . . . Max Security . | . . . . Squads Dispatched 2 | . 2 . . Investigation 1 | . 1 . . Extermination . | . . . . Reinforcement 1 | . 1 . . Assault . | . . . . Garrison . | . . . . Intercept . | . . . . Searches Triggered . | . . . . Construction Impeded . | . . . . Haulers Reinforced . | . . . . Active Scanning Responses . | . . . . Cargo Convoy Interrupts . | . . . . Stealth | -11 -10 -10 -10 --------- Run | Yrd Mat Min Exi Distress Signals 1 | . 1 . . Communications Jammed . | . . . . Distress Signals . | . . . . Times Spotted 29 | . 16 6 7 Peak Tracking Total 10 | . 4 3 10 Tactical Retreats 3 | . 2 1 . Traps | -11 -10 -10 -10 ------- Run | Yrd Mat Min Exi Traps Triggered 2 | . 2 . . Indirectly . | . . . . Trap Hack Attempts . | . . . . Triggered . | . . . . Disarmed . | . . . . Reprogrammed . | . . . . Reused . | . . . . Traps Extracted . | . . . . Installed . | . . . . Triggered . | . . . . Machines | -11 -10 -10 -10 ---------- Run | Yrd Mat Min Exi Machines Disabled 3 | . 3 . . Max in Single Turn 2 | . 2 . . Machines Repaired . | . . . . Machines Dismantled . | . . . . Machines Sabotaged . | . . . . Overloaded Fab Kills . | . . . . Hacking | -11 -10 -10 -10 --------- Run | Yrd Mat Min Exi Machines Accessed 9 | . 5 . 4 Terminals 5 | . 5 . . Fabricators . | . . . . Repair Stations . | . . . . Recycling Units . | . . . . Scanalyzers . | . . . . Garrison Access . | . . . . Total Hacks 36 | . 9 . 27 Successful 31 | . 4 . 27 Failed 5 | . 5 . . Catastrophic . | . . . . Database Lockouts . | . . . . Manual . | . . . . Terminals 9 | . 9 . . Fabricators . | . . . . Repair Stations . | . . . . Recycling Units . | . . . . Scanalyzers . | . . . . Garrison Access . | . . . . Terminal Hacks 31 | . 4 . 27 Record 27 | . . . 27 Prototype ID Bank 1 | . 1 . . Unreport Threat 1 | . 1 . . Locate Traps 1 | . 1 . . Zone Layout 1 | . 1 . . Fabricator Hacks . | . . . . Repair Station Hacks . | . . . . Recycling Unit Hacks . | . . . . Scanalyzer . | . . . . Garrison Access Hacks . | . . . . Unauthorized Hacks . | . . . . Terminals . | . . . . Fabricators . | . . . . Repair Stations . | . . . . Recycling Units . | . . . . Scanalyzers . | . . . . Garrison Access . | . . . . Data Cores Recovered . | . . . . Used . | . . . . Hacking Detections 4 | . 4 . . Full Trace Events . | . . . . Feedback Events . | . . . . Feedback Blocked . | . . . . Robot Schematics Acquired . | . . . . Robots Built . | . . . . Authchips . | . . . . Time . | . . . . Total Robot Build Rating . | . . . . Part Schematics Acquired . | . . . . Parts Built . | . . . . Authchips . | . . . . Time . | . . . . Total Part Build Rating . | . . . . Parts Repaired . | . . . . Time . | . . . . Parts Recycled . | . . . . Recycled Matter . | . . . . Retrieved Matter . | . . . . Retrieved Components . | . . . . Parts Scanalyzed . | . . . . Part Schematics Acquired . | . . . . Parts Damaged . | . . . . Bothacking | -11 -10 -10 -10 ------------ Run | Yrd Mat Min Exi Used RIF Installer . | . . . . Robots Hacked . | . . . . Non-combat . | . . . . Combat . | . . . . Robot Hacks Applied . | . . . . Relay Couplers Released . | . . . . Fabnet Peak Effective % . | . . . . Robots Rewired . | . . . . Allies Hacked . | . . . . Hacks Repelled . | . . . . Allies | -11 -10 -10 -10 -------- Run | Yrd Mat Min Exi Total Allies . | . . . . Largest Group . | . . . . Highest-Rated Group . | . . . . Highest-Rated Ally . | . . . . Total Orders . | . . . . Ally Attacks . | . . . . Total Damage . | . . . . Kills . | . . . . Allies Corrupted . | . . . . Allies Melted . | . . . . Intel | -11 -10 -10 -10 ------- Run | Yrd Mat Min Exi Robot Analysis Total . | . . . . Derelict Logs Recovered 1 | . . 1 . Drone Launches . | . . . . Drone Recoveries . | . . . . Exploration | -11 -10 -10 -10 ------------- Run | Yrd Mat Min Exi Turns Passed 2477 | 70 830 559 1018 Spaces Moved 1352 | 45 536 242 529 Core 26 | 26 . . . Treads . | . . . . Legs 1326 | 19 536 242 529 Wheels . | . . . . Hover . | . . . . Flight . | . . . . Fastest Speed 50 | 50 120 190 190 Average Speed 163 | 127 128 190 190 Slowest Speed 190 | 150 190 190 190 Overloaded Moves . | . . . . Propulsion Burnouts . | . . . . Robots Hopped . | . . . . Cave-ins Triggered . | . . . . Exploration Rate (%) 60 | 5 90 54 92 Regions Visited 3 Branch Regions 2 Pre-discovered Areas 2 | . . 1 1 Known Exits Taken 2 | . 1 1 . Unknown Exits Taken 1 | 1 . . . Scrap Searched . | . . . . Spaces Dug . | . . . . Terrain Destroyed 35 | . 35 . . Melee . | . . . . Projectile . | . . . . AOE 35 | . 35 . . Terrain Rammed . | . . . . Walls Destroyed . | . . . . Machines Disabled . | . . . . Actions | -11 -10 -10 -10 --------- Run | Yrd Mat Min Exi Total 1525 | 57 617 314 537 Wait 63 | . 12 51 . Move 1349 | 44 535 241 529 Hop . | . . . . Pick Up 25 | 7 14 3 1 Fast Attach . | . . . . Attach 12 | 6 5 . 1 Detach 3 | . 2 . 1 Swap 5 | . 3 2 . Drop 8 | . 4 3 1 Fire 60 | . 42 14 4 Melee . | . . . . Ram . | . . . . Kick . | . . . . Crush . | . . . . Escape Stasis . | . . . . Rewire . | . . . . Trap . | . . . . Miscellaneous . | . . . . Route ------- -11/Scrapyard -10/Materials (discovered 4 exits: [*Mat x3] / *Min) -10/Mines -10/Exiles (discovered 2 exits: [*Min x2]) History --------- Turn | Location | Event 21 | -11/Scrapyard | Discovered new exit (range 15) 71 | -11/Scrapyard | Entered Materials 304 | -10/Materials | Build established: Mutant 404 | -10/Materials | Discovered new exit (range 10) 585 | -10/Materials | Discovered new exit (range 3) 806 | -10/Materials | Discovered new exit (range 11) 880 | -10/Materials | Discovered new exit (range 12) 899 | -10/Materials | Identified exit to Mines 901 | -10/Materials | Entered Mines 939 | -10/Mines | Met a Derelict bent on vengeance 1384 | -10/Mines | Core integrity fell below 50% 1452 | -10/Mines | Deemed a non-threat by the Exiles lab entrance 1452 | -10/Mines | Discovered new exit (range 5) 1458 | -10/Mines | Identified exit to Exiles 1460 | -10/Mines | Entered Exiles 1501 | -10/Exiles | Discovered new exit (range 14) 1553 | -10/Exiles | Met 8R-AWN 1576 | -10/Exiles | Met EX-HEX 1653 | -10/Exiles | Met EX-DEC 1669 | -10/Exiles | Learned location of Zion (-7) 1739 | -10/Exiles | Discovered new exit (range 14) 1886 | -10/Exiles | Visited The Gauntlet 2241 | -10/Exiles | Met EX-BIN 2273 | -10/Exiles | Aligned with FarCom system 2275 | -10/Exiles | Given EX-Vault access code 2456 | -10/Exiles | Attacked by the Exiles 2476 | -10/Exiles | Core integrity fell below 20% 2478 | -10/Exiles | Destroyed by as-79745 with Assembled Maul Last Messages --------------- thought of it. >>Record! "HEX-105/Trap Reconfigurator" HEX: 0b10 trap systems are pretty poorly defended. I found that sending out a series of tuned electromagnetic waves is enough to redefine their targets. There's probably more we could do in this area. ** DEC: Like simultaneously trigger all the traps across a floor? Sounds good to me. 02385_ Connecting with EX-Vault Access... 02393_ System corrupted: Energy discharge (-55). 02456_ System corrupted: FCS attempts to trigger Shotgun. 02456_ System corrupted: Shotgun misfires. 02456_ EXILES: Hostile robot within lab perimeter. Defensive protocols time, folks! 02458_ EX-BIN: "I just want to science!" 02472_ Shotgun destroyed. 02472_ System corrupted by crushing effect (+5). 02475_ Aluminum Leg destroyed. Map ----- +----------------------------------------------------+ | ????????????????????# #########??????????????? | | ????????????????????# ##""""""#??????????????? | | ????????????????????# ## """#??????????????? | | ????????????????????# X""#??????????????? | | ????????????????????# ## """#??????????????? | | ????????????######### ##""""""#??????????????? | | ????????????#""""""## #########??????????????? | | ????????????#"""" ## #??????????????????????? | | ????????????#""X" #??????????????????????? | | ????????????#" #??????????????????????? | | ????????????#" ## #??????????????????????? | | ????????????#""""""## #?#########????????????? | | ????????????##"###### #?#"""""""#????????????? | | ???????????? "?????# #?#"""""""#????????????? | | ???????????""" ?????# #?#"""""""#????????????? | | ??????????#""" ????## ###"" """"#????????????? | | ????????????"" ????#" """"#????????????? | | ?????????????##????#" """#????????????? | | ???????????????????#" """#????????????? | | ???????????????????#" """#????????????? | | ??????######???????#" """#????????????? | | ????? """#???????#" """##???????????? | | ????#"" """#???????## """""???????????? | | ????#"" #????????# """##???????????? | | ????#"" #????????#" "X" """""???????????? | | ????#"" "#????????#" a@ """ # ???????????? | | ????# ""#????????#" aaa"""""""""#????????????? | | ?????"" ""#???????##" a ###########????????????? | | ??????# #????????##"" #??????????????????????? | | #???### ###?######"" #??????????????????????? | | #####X# #"###""""""" aa ##?????????????????????? | | """""" " "" ##???###########??????? | | "" """ " #####"""""""""##?????? | | " " " """ """"##????? | | "" " #????? | | " """#????? | | " "#????? | | " "##???? | | ""###?? | | "" """""" """#?? | | ######""" "#?? | | ""##????#####""" ##? | | " """##?????????##""" ## | | """##???????????#"""" # | | ""#???????????##"" | | ########??####"""" | | ## ####""" | | """" | | | | "" # | +----------------------------------------------------+ Best States ------------- Heat Dissipation 25 Energy Generation 10 Energy Capacity 250 Matter Stores 300 Matter Capacity 300 Sight Range 16 Terrain Scan Density 10 Power Shielding 33 Evasion (%) 55 Item Schematics ----------------- None Robot Schematics ------------------ None Fabricated ------------ Nothing Alien Tech Used ----------------- None Achievements -------------- None Challenges ------------ None Game ------ Seed SkeletonHardcellSteel Manual? 0 Play Time 00:31:35 Cumulative 11.8 hours Start 2024.04.04 @ 22:42:55 End 2024.04.06 @ 11:11:41 Sessions 3 Manual Loads 0 Difficulty Rogue Special Mode None Game No. 11 Rogue 11 Adventurer 0 Explorer 0 Win Type - Total 0 Types 0/0/0/0/0/0/0/0/0 Lore% 13 Gallery% 13 Achievement% 12 Wizard Run 0 Options --------- Layout 1 ASCII 0 Keyboard 0 Movement Mouse Keybinds 0 Fullscreen 1 Font 24/Smallcaps Map View 50x35 Zoom Use 58% Tactical HUD 1 Map Filters NONE Filters NONE Steam 1 RUN: a6898176-8dde-4a1a-a165-a8f2f9932cf6